bitfinex-derivatives/quotes_SOLF0:USTF0_20240912
["timestamp","ask_amount","ask_price","bid_price","bid_amount"]
[1726145455218,17.84,134.59,134.51,1.3671]
[1726145455613,17.84,134.57,134.51,1.3671]
[1726145455816,17.84,134.55,134.51,1.3671]
[1726145456027,1.0,134.58,134.51,1.3671]
[1726145456221,17.84,134.53,134.49,1.4163]
[1726145456419,44.1337,134.6,134.44,2.7063]
[1726145456420,28.5101,134.6,134.44,2.7063]
[1726145456625,17.84,134.51,134.44,4.0929]
[1726145457437,3.3468,134.45,134.44,4.0929]
[1726145457919,3.3468,134.45,134.44,2.7063]
[1726145458331,28.58,134.49,134.44,2.7063]
[1726145459739,28.58,134.51,134.44,2.7063]
[1726145460335,3.3466,134.46,134.44,2.7063]
[1726145460541,28.58,134.49,134.44,2.7063]
[1726145460931,3.3468,134.45,134.44,2.7063]
[1726145461540,3.3468,134.45,134.27,28.58]
[1726145461541,28.58,134.45,134.27,28.58]
[1726145461735,28.58,134.37,134.27,28.58]
[1726145462733,28.58,134.37,134.26,21.63591197]
[1726145462939,28.58,134.37,134.27,3.351]
[1726145463140,28.58,134.37,134.26,17.92724352]
[1726145465435,28.58,134.37,134.26,46.50724352]
[1726145465636,28.58,134.37,134.26,17.92724352]
[1726145465832,3.3501,134.32,134.26,17.92724352]
[1726145466336,3.3507,134.3,134.26,17.92724352]
[1726145466534,28.58,134.35,134.26,17.92724352]
[1726145467330,28.58,134.37,134.26,17.92724352]
[1726145467535,28.58,134.37,134.27,28.58]
[1726145468539,28.58,134.39,134.29,28.58]
[1726145468739,28.58,134.41,134.31,28.58]
[1726145469150,3.3484,134.39,134.34,3.3493]
[1726145469450,28.58,134.43,134.31,28.58]
[1726145470655,3.3483,134.39,134.34,3.3495]
[1726145471145,1.0,134.44,134.36,3.3488]
[1726145471146,3.3475,134.42,134.36,3.3488]
[1726145471353,1.0,134.44,134.35,28.58]
[1726145471846,1.0,134.44,134.35,31.9291]
[1726145472053,1.0,134.44,134.35,28.58]
[1726145472539,3.3476,134.42,134.36,3.3488]
[1726145472739,3.3476,134.42,134.35,28.58]
[1726145472942,1.0,134.44,134.35,28.58]
[1726145473137,3.3474,134.43,134.38,3.3483]
[1726145473437,228.0,134.52,134.3,3.75856419]
[1726145473438,28.58,134.51,134.39,28.58]
[1726145473750,3.3467,134.46,134.41,3.3477]
[1726145473951,28.58,134.51,134.39,32.29464721]
[1726145474151,28.58,134.49,134.39,28.58]
[1726145474953,3.3472,134.44,134.37,32.3322328]
[1726145475250,3.3472,134.44,134.37,28.58]
[1726145475552,3.3469,134.45,134.4,3.3478]
[1726145475854,28.58,134.49,134.4,3.3478]
[1726145476149,28.58,134.49,134.37,32.21345487]
[1726145476739,28.58,134.47,134.37,28.58]
[1726145476938,28.58,134.47,134.35,28.58]
[1726145477141,28.58,134.45,134.35,28.58]
[1726145477351,3.3482,134.4,134.35,28.58]
[1726145478045,3.3482,134.4,134.36,3.3488]
[1726145478561,3.3477,134.42,134.35,28.58]
[1726145478756,28.58,134.45,134.35,28.58]
[1726145479744,28.58,134.45,134.33,28.58]
[1726145479949,3.74702292,134.47,134.33,28.58]
[1726145479950,28.58,134.43,134.33,28.58]
[1726145480154,28.58,134.43,134.33,32.38582018]
[1726145480349,3.3485,134.39,134.35,3.3492]
[1726145480954,3.3485,134.38,134.34,3.3494]
[1726145481160,28.58,134.43,134.33,32.38582018]
[1726145482156,28.58,134.43,134.33,28.58]
[1726145482749,3.3487,134.38,134.33,31.9295]
[1726145482946,28.58,134.43,134.33,28.58]
[1726145483355,1.0,134.44,134.33,28.58]
[1726145484062,3.3479,134.41,134.37,3.3487]
[1726145484651,3.3479,134.41,134.38,3.3485]
[1726145484851,3.3476,134.42,134.38,3.3485]
[1726145485055,1.0,134.44,134.38,3.3485]
[1726145485260,3.3479,134.41,134.37,3.3486]
[1726145485864,3.3479,134.41,134.35,28.58]
[1726145486250,3.3479,134.41,134.36,3.3488]
[1726145486469,3.3479,134.41,134.35,28.58]
[1726145486661,1.0,134.44,134.35,28.58]
[1726145486963,1.0,134.44,134.38,3.3484]
[1726145487164,3.348,134.41,134.35,28.58]
[1726145487464,256.58,134.51,134.39,28.58]
[1726145487666,3.3464,134.47,134.4,3.70524748]
[1726145487876,28.58,134.51,134.4,3.70524748]
[1726145488175,28.58,134.51,134.41,28.58]
[1726145488370,31.2614,134.53,134.41,32.38513987]
[1726145488564,31.2614,134.53,134.43,28.58]
[1726145488768,3.3457,134.5,134.43,28.58]
[1726145488968,31.2614,134.53,134.41,32.38513987]
[1726145489164,29.9053,134.53,134.41,32.38513987]
[1726145489373,3.3455,134.5,134.42,1.4265]
[1726145489675,3.3455,134.5,134.43,29.9215]
[1726145490066,1.3253,134.53,134.43,29.9215]
[1726145490273,29.9053,134.53,134.43,1.3415]
[1726145490468,104.96447889,134.52,134.43,1.3415]
[1726145490677,104.96447889,134.52,134.44,3.347]
[1726145490875,1.3466,134.52,134.44,3.347]
[1726145491483,3.3462,134.48,134.44,3.347]
[1726145492279,1.3466,134.52,134.43,1.3415]
[1726145492475,1.3466,134.52,134.43,3.3472]
[1726145493075,1.3466,134.52,134.42,6.067]
[1726145493281,3.3467,134.46,134.42,1.4265]
[1726145493480,28.58,134.51,134.42,1.4265]
[1726145493682,29.9306,134.51,134.42,1.4265]
[1726145494485,3.3469,134.45,134.42,1.4265]
[1726145494687,28.58,134.49,134.37,1.3916]
[1726145494880,3.3472,134.44,134.37,6.51121134]
[1726145495280,3.3472,134.44,134.39,3.3481]
[1726145495480,28.58,134.47,134.37,35.09121134]
[1726145495880,28.58,134.47,134.4,3.3478]
[1726145496079,3.3472,134.44,134.4,3.3478]
[1726145496280,28.58,134.47,134.37,31.3387]
[1726145496474,28.58,134.47,134.37,35.09121134]
[1726145496675,3.3472,134.44,134.37,35.09121134]
[1726145496981,28.58,134.44,134.37,4.7156]
[1726145497574,3.7066,134.46,134.31,29.967]
[1726145497575,28.58,134.42,134.31,29.967]
[1726145497796,28.58,134.42,134.32,1.33]
[1726145498086,28.58,134.42,134.35,3.3491]
[1726145498492,28.58,134.42,134.32,1.33]
[1726145498684,3.3482,134.4,134.34,3.3495]
[1726145499182,28.58,134.42,134.32,1.33]
[1726145499490,28.58,134.42,134.33,3.3497]
[1726145499879,3.3484,134.39,134.33,3.3497]
[1726145500105,28.58,134.42,134.33,3.3497]
[1726145500387,28.58,134.42,134.34,3.3494]
[1726145500588,3.3484,134.39,134.34,3.3494]
[1726145500775,28.58,134.42,134.32,1.33]
[1726145500980,1.0,134.43,134.33,28.58]
[1726145501688,3.3478,134.41,134.33,28.58]
[1726145502185,1.0,134.43,134.33,28.58]
[1726145502186,3.3476,134.42,134.33,28.58]
[1726145502482,31.2866,134.46,134.35,28.58]
[1726145502878,3.3477,134.42,134.35,28.58]
[1726145503084,31.2866,134.46,134.35,28.58]
[1726145503483,3.3477,134.42,134.35,28.58]
[1726145503986,3.348,134.41,134.37,3.3485]
[1726145504290,31.2866,134.46,134.35,28.58]
[1726145504788,28.58,134.44,134.32,29.91]
[1726145505198,28.58,134.44,134.33,3.3496]
[1726145505887,3.3487,134.38,134.33,3.3496]
[1726145506091,1.0,134.43,134.32,4.6799]
[1726145506289,3.349,134.37,134.32,1.33]
[1726145506505,28.58,134.42,134.32,1.33]
[1726145507590,28.58,134.4,134.32,1.33]
[1726145507793,1.4245,134.39,134.32,1.33]
[1726145507988,3.3495,134.34,134.32,1.33]
[1726145508303,3.3495,134.34,134.28,3.351]
[1726145509382,3.3495,134.34,134.29,3.3507]
[1726145510890,3.3497,134.33,134.29,3.3507]
[1726145511587,3.3497,134.33,134.28,3.3509]
[1726145511997,3.3502,134.32,134.27,4.1746]
[1726145512201,3.3502,134.32,134.27,4.7805]
[1726145512799,28.58,134.36,134.27,1.4293]
[1726145513006,3.3504,134.31,134.27,1.4293]
[1726145513402,3.3504,134.31,134.27,4.7805]
[1726145513904,3.35,134.32,134.27,4.7805]
[1726145514203,30.0029,134.38,134.27,1.4293]
[1726145514603,3.3497,134.34,134.27,1.4293]
[1726145515110,30.0029,134.38,134.27,1.4293]
[1726145515594,3.3493,134.35,134.31,3.3501]
[1726145515901,30.0029,134.38,134.3,3.81135026]
[1726145516085,30.0029,134.38,134.27,1.4293]
[1726145516290,2.7737,134.39,134.28,28.58]
[1726145516491,2.7737,134.39,134.29,1.4145]
[1726145516791,3.3489,134.37,134.33,3.3496]
[1726145517497,3.3486,134.38,134.34,3.3495]
[1726145518694,3.3488,134.37,134.34,3.3495]
[1726145520201,3.3488,134.37,134.33,3.3497]
[1726145521603,3.3488,134.37,134.34,3.3495]
[1726145522509,3.3486,134.38,134.35,3.3492]
[1726145522706,2.7737,134.39,134.3,28.58]
[1726145522908,2.7737,134.39,134.3,3.81468245]
[1726145523101,3.3499,134.33,134.3,7.16508245]
[1726145523302,1.386,134.38,134.28,28.58]
[1726145523702,3.3498,134.33,134.3,3.3503]
[1726145523995,1.386,134.38,134.28,28.58]
[1726145524503,1.386,134.38,134.29,3.3507]
[1726145525408,3.3497,134.34,134.3,3.3504]
[1726145525792,3.3499,134.33,134.29,3.3506]
[1726145525999,3.3499,134.33,134.27,1.4293]
[1726145526293,3.3503,134.31,134.28,3.3509]
[1726145526807,29.966,134.38,134.27,1.4293]
[1726145527203,3.3502,134.32,134.29,3.3507]
[1726145527513,29.966,134.38,134.27,1.4293]
[1726145527696,29.966,134.38,134.28,3.351]
[1726145527893,29.966,134.38,134.27,1.4293]
[1726145528100,3.3496,134.34,134.3,3.3504]
[1726145528413,1.386,134.38,134.27,1.4293]
[1726145528708,3.3493,134.35,134.31,3.3502]
[1726145529020,1.386,134.38,134.3,3.76228384]
[1726145529209,1.386,134.38,134.29,28.58]
[1726145529508,2.7737,134.39,134.29,28.58]
[1726145530004,2.7737,134.39,134.34,3.3494]
[1726145530005,3.3488,134.37,134.34,3.3494]
[1726145532095,3.3488,134.37,134.32,3.66949594]
[1726145532096,28.58,134.44,134.33,28.58]
[1726145532300,1.2892,134.46,134.33,28.58]
[1726145532301,2.6915,134.45,134.35,28.58]
[1726145532498,28.58,134.44,134.36,3.349]
[1726145533208,3.348,134.4,134.36,3.349]
[1726145533402,28.58,134.44,134.34,1.3921]
[1726145533712,3.3484,134.39,134.34,1.3921]
[1726145533907,3.3484,134.39,134.34,8.4927956]
[1726145534109,17.87,134.42,134.34,1.3921]
[1726145534616,17.87,134.41,134.3,17.87]
[1726145534906,17.87,134.41,134.3,21.50788611]
[1726145535104,1.3564,134.4,134.31,3.3501]
[1726145535511,2.7031,134.39,134.31,3.67286937]
[1726145535810,2.7031,134.39,134.34,17.87]
[1726145536410,6.0515,134.39,134.35,3.3491]
[1726145536612,6.0515,134.39,134.34,17.87]
[1726145536613,17.87,134.44,134.34,17.87]
[1726145536801,1.3737,134.43,134.34,17.87]
[1726145536999,1.3737,134.43,134.35,1.4059]
[1726145537414,3.3478,134.41,134.37,3.3486]
[1726145537914,3.3476,134.42,134.38,3.3485]
[1726145538119,1.3737,134.43,134.38,17.87]
[1726145538821,1.3737,134.43,134.36,17.87]
[1726145539014,1.3737,134.43,134.38,3.3484]
[1726145539209,1.3737,134.43,134.36,17.87]
[1726145539613,1.3737,134.43,134.38,3.3483]
[1726145540417,3.3476,134.42,134.38,3.3483]
[1726145540906,1.3737,134.43,134.39,3.3482]
[1726145541114,4.7212,134.43,134.39,3.3482]
[1726145541317,1.3737,134.43,134.39,3.3482]
[1726145542515,1.3294,134.45,134.38,17.87]
[1726145542721,19.2107,134.48,134.38,17.87]
[1726145543103,3.3475,134.43,134.39,3.3482]
[1726145543319,17.87,134.46,134.36,17.87]
[1726145543513,3.348,134.41,134.38,3.3485]
[1726145543713,1.3821,134.45,134.38,3.3485]
[1726145543925,1.3821,134.45,134.38,17.87]
[1726145544214,3.3474,134.43,134.4,3.3479]
[1726145544405,1.3821,134.45,134.38,17.87]
[1726145544605,3.3477,134.42,134.38,21.2184]
[1726145544815,1.3821,134.45,134.38,21.2184]
[1726145545319,3.3477,134.42,134.38,21.2184]
[1726145545615,1.3821,134.45,134.37,3.3487]
[1726145545807,1.3821,134.45,134.36,17.87]
[1726145545808,3.348,134.4,134.36,17.87]
[1726145546016,1.3821,134.45,134.36,17.87]
[1726145546216,17.87,134.44,134.35,1.4059]
[1726145546722,18.87,134.44,134.35,4.7551]
[1726145546915,17.87,134.41,134.28,2.7533]
[1726145547119,1.3065,134.4,134.31,17.87]
[1726145547313,1.3065,134.4,134.34,3.3495]
[1726145547513,1.3065,134.4,134.33,17.87]
[1726145547913,1.3065,134.4,134.31,17.87]
[1726145548113,1.3919,134.39,134.31,17.87]
[1726145548319,19.2619,134.39,134.31,17.87]
[1726145548518,3.3496,134.34,134.31,17.87]
[1726145549017,20.5958,134.39,134.31,17.87]
[1726145549221,3.3496,134.34,134.31,17.87]
[1726145549611,20.5958,134.39,134.31,17.87]
[1726145549813,3.3496,134.34,134.31,17.87]
[1726145550230,3.3496,134.34,134.31,21.2202]
[1726145550418,3.3494,134.35,134.31,21.2202]
[1726145550625,2.7258,134.39,134.31,17.87]
[1726145550817,17.87,134.37,134.29,1.4143]
[1726145551429,3.3499,134.33,134.29,1.4143]
[1726145551928,1.0,134.38,134.3,3.81012658]
[1726145552129,1.0,134.38,134.3,17.87]
[1726145552427,1.0,134.38,134.32,3.3498]
[1726145552733,3.3491,134.36,134.32,3.3498]
[1726145552929,1.0,134.38,134.31,3.66381236]
[1726145553131,3.3487,134.38,134.32,17.87]
[1726145553338,3.3487,134.38,134.33,3.70141474]
[1726145553636,3.3487,134.38,134.35,3.3492]
[1726145554016,3.3483,134.39,134.35,3.3492]
[1726145554526,3.3485,134.38,134.35,3.3492]
[1726145554925,19.2141,134.43,134.35,3.3492]
[1726145555126,3.3483,134.39,134.35,3.3492]
[1726145556423,19.2141,134.43,134.34,3.3495]
[1726145557018,3.3488,134.37,134.34,3.3495]
[1726145557322,17.87,134.41,134.33,3.3496]
[1726145557519,3.3493,134.35,134.3,19.2509]
[1726145557722,3.3493,134.35,134.31,3.3501]
[1726145557922,17.87,134.39,134.3,17.87]
[1726145558127,3.3495,134.34,134.3,17.87]
[1726145558528,1.4119,134.38,134.3,17.87]
[1726145558731,3.3495,134.34,134.31,3.3502]
[1726145558927,1.4119,134.38,134.3,17.87]
[1726145559128,1.3232,134.37,134.3,17.87]
[1726145559325,1.3232,134.37,134.28,17.87]
[1726145559632,2.6776,134.37,134.28,17.87]
[1726145560632,2.6776,134.37,134.29,4.7649]
[1726145561137,20.5476,134.37,134.26,35.79724352]
[1726145561440,20.5476,134.37,134.27,1.3646]
[1726145561441,2.6776,134.37,134.27,1.3646]
[1726145562324,3.35,134.33,134.29,3.3506]
[1726145562525,2.6776,134.37,134.3,3.76042597]
[1726145562730,2.6776,134.37,134.27,1.3646]
[1726145562930,3.3499,134.33,134.3,3.3505]
[1726145563540,3.35,134.32,134.29,3.3506]
[1726145564433,2.6776,134.37,134.27,1.3646]
[1726145565142,2.6776,134.37,134.29,3.3505]
[1726145565522,2.6776,134.37,134.31,3.35]
[1726145565738,2.6776,134.37,134.27,1.3646]
[1726145566137,3.3499,134.33,134.3,3.3504]
[1726145566740,1.3232,134.37,134.3,3.66287466]
[1726145566934,1.3232,134.37,134.29,17.87]
[1726145567135,1.4119,134.38,134.31,17.87]
[1726145567444,1.3276,134.41,134.33,17.87]
[1726145567835,3.3487,134.38,134.33,17.87]
[1726145568039,1.3276,134.41,134.33,17.87]
[1726145568242,20.4605,134.42,134.33,17.87]
[1726145568446,3.3484,134.39,134.35,3.3491]
[1726145569737,3.3484,134.39,134.33,17.87]
[1726145569943,3.3484,134.39,134.34,1.3299]
[1726145570634,3.3484,134.39,134.35,3.3491]
[1726145571743,3.3485,134.38,134.35,3.3491]
[1726145572149,3.3485,134.38,134.34,1.3299]
[1726145572150,3.3485,134.38,134.34,4.6793]
[1726145573858,3.3485,134.38,134.35,3.3492]
[1726145574749,2.5905,134.42,134.34,19.1999]
[1726145575140,3.3482,134.4,134.36,3.3489]
[1726145576146,3.3484,134.39,134.36,3.3489]
[1726145577638,2.5905,134.42,134.35,3.3491]
[1726145577951,2.5905,134.42,134.34,19.1999]
[1726145578245,3.3481,134.4,134.36,3.3489]
[1726145578636,2.5905,134.42,134.36,3.3489]
[1726145579449,2.5905,134.42,134.37,3.3486]
[1726145579852,3.3482,134.4,134.37,3.3486]
[1726145580554,3.3483,134.39,134.36,3.349]
[1726145580860,2.5905,134.42,134.31,3.67292727]
[1726145580861,20.4605,134.42,134.31,21.54292727]
[1726145581069,20.4605,134.42,134.32,3.3498]
[1726145581070,3.3492,134.36,134.32,3.3498]
[1726145581359,3.3492,134.36,134.32,3.63666815]
[1726145581753,3.3492,134.36,134.33,3.3496]
[1726145582254,3.3488,134.37,134.34,3.3495]
[1726145582847,3.349,134.36,134.33,3.3497]
[1726145583644,3.3492,134.35,134.32,3.3499]
[1726145583850,20.4605,134.42,134.31,17.87]
[1726145584049,3.3491,134.36,134.31,17.87]
[1726145584249,3.3491,134.36,134.33,3.3497]
[1726145585142,2.5905,134.42,134.31,21.50907917]
[1726145585346,2.5905,134.42,134.33,17.87]
[1726145585547,2.5905,134.42,134.31,3.63907917]
[1726145585548,1.2927,134.42,134.4,3.3478]
[1726145585758,1.2927,134.42,134.35,17.87]
[1726145586255,3.348,134.41,134.38,3.3484]
[1726145586752,3.3476,134.42,134.39,3.3482]
[1726145586957,20.5572,134.46,134.35,17.87]
[1726145587460,3.3475,134.42,134.39,3.3481]
[1726145587657,20.5572,134.46,134.39,3.3481]
[1726145587845,17.87,134.44,134.34,2.6644]
[1726145588047,3.3481,134.4,134.34,2.6644]
[1726145588254,17.87,134.44,134.34,2.6644]
[1726145588658,3.3482,134.4,134.34,2.6644]
[1726145589360,3.3483,134.39,134.34,2.6644]
[1726145589758,3.3483,134.39,134.36,3.3488]
[1726145589951,3.3483,134.39,134.34,2.6644]
[1726145590153,1.289,134.43,134.34,2.6644]
[1726145590558,1.289,134.43,134.38,3.3483]
[1726145590759,3.3479,134.41,134.38,3.3483]
[1726145591062,1.289,134.43,134.34,2.6644]
[1726145591254,1.289,134.43,134.39,3.3482]
[1726145591454,3.3477,134.42,134.39,3.3482]
[1726145592268,4.6364,134.43,134.4,3.348]
[1726145592563,1.289,134.43,134.35,17.87]
[1726145592757,3.3478,134.41,134.37,3.3486]
[1726145592961,1.289,134.43,134.35,17.87]
[1726145593162,1.289,134.43,134.34,2.6644]
[1726145593364,3.3484,134.39,134.36,3.3489]
[1726145594473,3.3481,134.4,134.37,3.3487]
[1726145594772,19.159,134.43,134.37,3.3487]
[1726145595073,17.87,134.4,134.34,1.2928]
[1726145596161,17.87,134.4,134.31,21.50907917]
[1726145596357,17.87,134.4,134.31,22.91057917]
[1726145597075,3.3488,134.37,134.34,3.3494]
[1726145597661,3.349,134.36,134.33,3.3497]
[1726145597865,17.87,134.4,134.31,22.91057917]
[1726145598066,1.3786,134.39,134.31,22.91057917]
[1726145598267,3.3496,134.34,134.31,26.26077917]
[1726145598467,3.3496,134.34,134.31,3.3502]
[1726145598664,2.7455,134.39,134.29,17.87]
[1726145598665,17.87,134.38,134.29,17.87]
[1726145598872,2.7455,134.39,134.29,3.3506]
[1726145598873,3.3501,134.32,134.29,3.3506]
[1726145599273,3.3504,134.31,134.28,4.7154]
[1726145599472,17.87,134.36,134.27,17.87]
[1726145599780,17.87,134.36,134.29,3.3507]
[1726145599985,17.87,134.36,134.26,17.92724352]
[1726145600170,17.87,134.34,134.26,17.92724352]
[1726145600474,1.3819,134.33,134.26,17.92724352]
[1726145600862,3.3507,134.3,134.26,21.27854352]
[1726145601064,1.3819,134.33,134.26,17.92724352]
[1726145601578,2.7651,134.33,134.26,17.92724352]
[1726145602174,1.3758,134.37,134.27,17.87]
[1726145602479,3.3494,134.35,134.27,17.87]
[1726145603076,19.2458,134.37,134.31,3.3502]
[1726145603279,1.3758,134.37,134.31,3.78882681]
[1726145603480,3.349,134.36,134.32,3.3498]
[1726145603691,1.3758,134.37,134.32,3.3498]
[1726145603888,1.3758,134.37,134.3,17.87]
[1726145604070,1.3758,134.37,134.26,35.79724352]
[1726145604071,1.3154,134.39,134.32,17.87]
[1726145604271,1.3154,134.39,134.33,1.3223]
[1726145604468,3.3486,134.38,134.35,3.3491]
[1726145604680,1.3154,134.39,134.33,1.3223]
[1726145605088,3.3492,134.36,134.33,1.3223]
[1726145605273,2.757,134.44,134.33,1.3223]
[1726145605474,2.757,134.44,134.34,17.87]
[1726145605475,1.3968,134.43,134.34,17.87]
[1726145606082,3.349,134.36,134.33,4.6719]
[1726145606294,19.1748,134.42,134.33,4.6719]
[1726145606475,19.1748,134.42,134.33,1.3223]
[1726145606788,3.3489,134.37,134.33,4.672]
[1726145607383,19.1748,134.42,134.33,19.1923]
[1726145607795,3.3485,134.38,134.34,3.3494]
[1726145608079,19.1748,134.42,134.31,17.87]
[1726145608478,19.1748,134.42,134.34,3.3494]
[1726145608679,19.1748,134.42,134.31,17.87]
[1726145608983,3.3481,134.4,134.36,3.349]
[1726145609185,1.3048,134.42,134.33,17.87]
[1726145609488,3.3488,134.37,134.33,17.87]
[1726145609695,1.3048,134.42,134.33,17.87]
[1726145610377,19.1748,134.42,134.31,17.87]
[1726145611087,17.87,134.4,134.29,17.87]
[1726145611479,3.3494,134.35,134.3,3.79624804]
[1726145612172,3.349,134.36,134.29,17.87]
[1726145612375,1.3048,134.42,134.31,17.87]
[1726145612376,19.1748,134.42,134.31,17.87]
[1726145612679,19.1748,134.42,134.31,21.59180451]
[1726145613480,19.1748,134.42,134.33,3.3496]
[1726145613872,19.1748,134.42,134.31,21.59180451]
[1726145614073,17.87,134.4,134.31,21.59180451]
[1726145614276,17.87,134.4,134.29,17.87]
[1726145614780,17.87,134.4,134.32,3.3498]
[1726145614781,3.3493,134.35,134.32,3.3498]
[1726145615177,17.87,134.4,134.31,3.77335503]
[1726145615378,17.87,134.4,134.29,17.87]
[1726145615579,17.87,134.4,134.33,3.3496]
[1726145615883,17.87,134.4,134.31,3.69183538]
[1726145616185,3.3492,134.36,134.32,3.3498]
[1726145616384,3.3492,134.36,134.31,3.81281203]
[1726145616586,3.3492,134.36,134.32,3.3498]
[1726145616985,3.3493,134.35,134.32,3.3498]
[1726145617284,17.87,134.4,134.31,3.3501]
[1726145617473,17.87,134.4,134.29,17.87]
[1726145617673,17.87,134.38,134.29,17.87]
[1726145617879,1.3531,134.37,134.29,3.3507]
[1726145618086,1.3531,134.37,134.27,19.262]
[1726145618389,1.3531,134.37,134.28,3.3509]
[1726145618390,2.6934,134.36,134.28,3.3509]
[1726145619388,2.6934,134.36,134.27,21.2211]
[1726145619579,20.5634,134.36,134.27,17.87]
[1726145620388,20.5634,134.36,134.28,3.3508]
[1726145621981,20.5634,134.36,134.27,17.87]
[1726145622179,3.3499,134.33,134.27,17.87]
[1726145622598,2.6934,134.36,134.27,17.87]
[1726145622795,3.3501,134.32,134.27,17.87]
[1726145623778,3.3501,134.32,134.29,3.3507]
[1726145624496,3.3499,134.33,134.27,17.87]
[1726145624991,3.3499,134.33,134.3,3.3504]
[1726145625393,3.3496,134.34,134.27,17.87]
[1726145625792,2.6934,134.36,134.27,17.87]
[1726145625996,3.3499,134.33,134.3,3.3502]
[1726145627093,3.3501,134.32,134.29,3.3506]
[1726145627900,3.3502,134.31,134.29,3.3506]
[1726145628194,3.3502,134.31,134.27,17.87]
[1726145628195,1.3276,134.36,134.31,3.3501]
[1726145628582,3.3494,134.35,134.3,3.74962764]
[1726145628786,1.3531,134.37,134.33,3.3497]
[1726145628996,3.3495,134.35,134.31,3.67403932]
[1726145629196,3.3495,134.35,134.32,3.3499]
[1726145632098,3.3496,134.34,134.32,3.3499]
[1726145632692,3.3496,134.34,134.31,3.80287459]
[1726145632693,3.3496,134.34,134.31,3.3502]
[1726145633496,1.3531,134.37,134.28,1.3527]
[1726145633884,3.3501,134.32,134.29,3.3505]
[1726145634084,3.3501,134.32,134.28,1.3527]
[1726145634505,3.3501,134.32,134.29,3.3505]
[1726145634993,3.3503,134.31,134.29,3.3505]
[1726145635201,17.87,134.36,134.28,3.3509]
[1726145635584,3.3504,134.31,134.28,3.3509]
[1726145636203,3.3504,134.31,134.29,3.3507]
[1726145636592,3.3504,134.31,134.28,3.3509]
[1726145636798,3.3506,134.3,134.26,19.29784352]
[1726145637395,3.3506,134.3,134.27,3.3511]
[1726145637702,3.3506,134.3,134.26,19.29784352]
[1726145637703,17.87,134.34,134.26,19.29784352]
[1726145637899,1.422,134.33,134.26,19.29784352]
[1726145638100,3.3511,134.28,134.26,19.29784352]
[1726145639810,17.87,134.27,134.24,14.77634638]
[1726145640012,17.87,134.25,134.24,14.77634638]
[1726145640307,21.2217,134.25,134.24,14.77634638]
[1726145640514,17.87,134.25,134.23,18.76463659]
[1726145640707,3.3522,134.23,134.22,5.93417225]
[1726145640902,21.2222,134.23,134.22,5.93417225]
[1726145642713,3.3525,134.22,134.2,12.19859453]
[1726145642905,3.69839022,134.28,134.2,12.19859453]
[1726145643098,17.87,134.23,134.2,12.19859453]
[1726145643401,3.3525,134.22,134.2,12.19859453]
[1726145644418,3.3523,134.23,134.2,12.19859453]
[1726145644631,17.87,134.27,134.2,12.19859453]
[1726145644914,3.352,134.24,134.21,24.69802382]
[1726145645302,17.87,134.27,134.21,24.69802382]